[Event "NJSK 2018 Jeugd B"]
[Site "Assen, Netherlands"]
[Date "2018.04.29"]
[Round "1.1"]
[White "Bruggink, Tycho"]
[Black "De Boer, Eelke"]
[Result "0-1"]
[TimeControl "40/90m+30m+30sec/move"]
[WhiteElo "1899"]
[BlackElo "2318"]

1. e4 {[%clk 01:30:58]} {[%emt 00:00:02]} c5 {[%clk 01:30:54]} {[%emt
00:00:07]} 2. Nf3 {[%clk 01:31:24]} {[%emt 00:00:03]} d6 {[%clk 01:31:19]}
{[%emt 00:00:08]} 3. d4 {[%clk 01:31:51]} {[%emt 00:00:02]} cxd4 {[%clk
01:31:42]} {[%emt 00:00:05]} 4. Nxd4 {[%clk 01:32:19]} {[%emt 00:00:05]} Nf6
{[%clk 01:32:03]} {[%emt 00:00:10]} 5. Nc3 {[%clk 01:32:46]} {[%emt 00:00:03]}
a6 {[%clk 01:32:26]} {[%emt 00:00:04]} 6. Bc4 {[%clk 01:33:13]} {[%emt
00:00:02]} e6 {[%clk 01:32:47]} {[%emt 00:00:10]} 7. Bb3 {[%clk 01:33:40]}
{[%emt 00:00:02]} b5 {[%clk 01:25:42]} {[%emt 00:07:35]} 8. a3 {[%clk
01:22:34]} {[%emt 00:11:37]} Bb7 {[%clk 01:20:44]} {[%emt 00:05:27]} 9. f3
{[%clk 01:21:28]} {[%emt 00:01:36]} Nbd7 {[%clk 01:19:38]} {[%emt 00:01:35]} 10.
O-O {[%clk 01:16:54]} {[%emt 00:05:04]} Nc5 {[%clk 01:19:45]} {[%emt 00:00:24]}
11. Ba2 {[%clk 01:11:23]} {[%emt 00:06:01]} Qc7 {[%clk 01:19:18]} {[%emt
00:00:56]} 12. Be3 {[%clk 01:08:45]} {[%emt 00:03:08]} Be7 {[%clk 01:18:54]}
{[%emt 00:00:55]} 13. Nde2 {[%clk 00:56:21]} {[%emt 00:12:55]} O-O {[%clk
01:15:25]} {[%emt 00:03:59]} 14. Bd4 {[%clk 00:48:53]} {[%emt 00:07:58]} Rfd8
{[%clk 01:11:26]} {[%emt 00:04:28]} 15. Ng3 {[%clk 00:48:15]} {[%emt 00:01:08]}
Bc6 {[%clk 01:09:46]} {[%emt 00:02:09]} 16. Qe2 {[%clk 00:48:18]} {[%emt
00:00:28]} Qb7 {[%clk 01:07:49]} {[%emt 00:02:27]} 17. b4 {[%clk 00:41:50]}
{[%emt 00:06:57]} Ncd7 {[%clk 01:06:22]} {[%emt 00:01:57]} 18. Rad1 {[%clk
00:37:08]} {[%emt 00:05:12]} a5 {[%clk 01:01:53]} {[%emt 00:05:00]} 19. Bb3
{[%clk 00:31:18]} {[%emt 00:06:20]} Nf8 {[%clk 00:56:50]} {[%emt 00:05:32]} 20.
f4 {[%clk 00:29:34]} {[%emt 00:02:15]} axb4 {[%clk 00:51:58]} {[%emt 00:05:22]}
21. axb4 {[%clk 00:29:59]} {[%emt 00:00:05]} d5 {[%clk 00:50:36]} {[%emt
00:01:51]} 22. e5 {[%clk 00:29:41]} {[%emt 00:00:48]} Ne8 {[%clk 00:47:20]}
{[%emt 00:03:46]} 23. Na2 {[%clk 00:23:52]} {[%emt 00:06:20]} g6 {[%clk
00:42:27]} {[%emt 00:05:22]} 24. c3 {[%clk 00:22:16]} {[%emt 00:02:07]} Ng7
{[%clk 00:40:30]} {[%emt 00:02:27]} 25. Nc1 {[%clk 00:21:52]} {[%emt 00:00:54]}
h5 {[%clk 00:33:26]} {[%emt 00:07:33]} 26. Qb2 {[%clk 00:18:49]} {[%emt
00:03:34]} Ra6 {[%clk 00:31:59]} {[%emt 00:01:57]} 27. Nd3 {[%clk 00:19:01]}
{[%emt 00:00:18]} Nd7 {[%clk 00:32:22]} {[%emt 00:00:06]} 28. Ra1 {[%clk
00:18:02]} {[%emt 00:01:30]} Rda8 {[%clk 00:32:44]} {[%emt 00:00:07]} 29. Rfd1
{[%clk 00:14:41]} {[%emt 00:03:51]} h4 {[%clk 00:31:33]} {[%emt 00:01:41]} 30.
Ne2 {[%clk 00:13:38]} {[%emt 00:01:33]} Nf5 {[%clk 00:31:55]} {[%emt 00:00:09]}
31. Ne1 {[%clk 00:13:45]} {[%emt 00:00:23]} Nb6 {[%clk 00:31:18]} {[%emt
00:01:07]} 32. Rxa6 {[%clk 00:09:38]} {[%emt 00:04:38]} Qxa6 {[%clk 00:30:53]}
{[%emt 00:00:54]} 33. Nc2 {[%clk 00:06:47]} {[%emt 00:03:21]} Nc4 {[%clk
00:31:09]} {[%emt 00:00:14]} 34. Bxc4 {[%clk 00:05:48]} {[%emt 00:01:29]} dxc4
{[%clk 00:31:30]} {[%emt 00:00:08]} 35. Ne3 {[%clk 00:06:09]} {[%emt 00:00:09]}
Qb7 {[%clk 00:23:11]} {[%emt 00:08:49]} 36. Nxf5 {[%clk 00:05:58]} {[%emt
00:00:42]} gxf5 {[%clk 00:23:34]} {[%emt 00:00:07]} 37. Nc1 {[%clk 00:06:10]}
{[%emt 00:00:17]} Kh7 {[%clk 00:23:46]} {[%emt 00:00:18]} 38. Qf2 {[%clk
00:05:02]} {[%emt 00:01:39]} Bxg2 {[%clk 00:21:42]} {[%emt 00:02:33]} 39. Qe3
{[%clk 00:03:40]} {[%emt 00:01:53]} Rg8 {[%clk 00:21:09]} {[%emt 00:01:02]} 40.
Kf2 {[%clk 00:04:02]} {[%emt 00:00:08]} Bh1 {[%clk 00:19:52]} {[%emt 00:01:47]}
41. Ke1 {[%clk 00:03:40]} {[%emt 00:00:53]} Bf3 {[%clk 00:15:51]} {[%emt
00:04:30]} 42. Rd2 {[%clk 00:03:56]} {[%emt 00:00:14]} h3 {[%clk 00:15:42]}
{[%emt 00:00:38]} 43. Ne2 {[%clk 00:03:51]} {[%emt 00:00:36]} Bh4+ {[%clk
00:13:19]} {[%emt 00:02:53]} 44. Kd1 {[%clk 00:04:17]} {[%emt 00:00:04]} Rg2
{[%clk 00:09:22]} {[%emt 00:04:27]} 45. Kc2 {[%clk 00:04:41]} {[%emt 00:00:07]}
Be1 {[%clk 00:09:22]} {[%emt 00:00:29]} 0-1

[Event "NJSK 2018 Jeugd B"]
[Site "Assen, Netherlands"]
[Date "2018.04.29"]
[Round "1.2"]
[White "Tang, Charlie"]
[Black "Honkoop, Gilian"]
[Result "1-0"]
[TimeControl "40/90m+30m+30sec/move"]
[WhiteElo "2127"]
[BlackElo "1889"]

1. e4 {[%clk 01:30:56]} {[%emt 00:00:04]} e5 {[%clk 01:30:59]} {[%emt
00:00:01]} 2. Nf3 {[%clk 01:31:17]} {[%emt 00:00:11]} Nc6 {[%clk 01:31:27]}
{[%emt 00:00:03]} 3. Bb5 {[%clk 01:31:35]} {[%emt 00:00:09]} a6 {[%clk
01:31:50]} {[%emt 00:00:09]} 4. Ba4 {[%clk 01:31:58]} {[%emt 00:00:08]} Nf6
{[%clk 01:32:15]} {[%emt 00:00:02]} 5. O-O {[%clk 01:32:16]} {[%emt 00:00:12]}
Be7 {[%clk 01:32:41]} {[%emt 00:00:04]} 6. Re1 {[%clk 01:32:25]} {[%emt
00:00:22]} b5 {[%clk 01:33:05]} {[%emt 00:00:06]} 7. Bb3 {[%clk 01:32:38]}
{[%emt 00:00:16]} d6 {[%clk 01:33:07]} {[%emt 00:00:28]} 8. c3 {[%clk
01:32:45]} {[%emt 00:00:23]} O-O {[%clk 01:33:30]} {[%emt 00:00:07]} 9. h3
{[%clk 01:32:52]} {[%emt 00:00:23]} Nb8 {[%clk 01:33:49]} {[%emt 00:00:11]} 10.
d4 {[%clk 01:32:43]} {[%emt 00:00:39]} Nbd7 {[%clk 01:34:16]} {[%emt 00:00:03]}
11. Nbd2 {[%clk 01:28:43]} {[%emt 00:04:30]} Bb7 {[%clk 01:34:30]} {[%emt
00:00:16]} 12. a4 {[%clk 01:28:19]} {[%emt 00:00:54]} c5 {[%clk 01:33:47]}
{[%emt 00:01:12]} 13. d5 {[%clk 01:26:07]} {[%emt 00:02:43]} c4 {[%clk
01:33:35]} {[%emt 00:00:42]} 14. Bc2 {[%clk 01:26:25]} {[%emt 00:00:12]} Re8
{[%clk 01:32:29]} {[%emt 00:01:36]} 15. Nf1 {[%clk 01:25:41]} {[%emt 00:01:14]}
Bf8 {[%clk 01:32:47]} {[%emt 00:00:12]} 16. Ng3 {[%clk 01:23:32]} {[%emt
00:02:39]} g6 {[%clk 01:31:53]} {[%emt 00:01:24]} 17. Be3 {[%clk 01:22:41]}
{[%emt 00:01:21]} Nc5 {[%clk 01:29:21]} {[%emt 00:03:02]} 18. Qd2 {[%clk
01:20:33]} {[%emt 00:02:37]} Nfd7 {[%clk 01:22:37]} {[%emt 00:07:15]} 19. Nh2
{[%clk 01:13:25]} {[%emt 00:07:38]} h5 {[%clk 01:18:48]} {[%emt 00:04:19]} 20.
Rf1 {[%clk 01:12:07]} {[%emt 00:01:48]} Nb6 {[%clk 00:59:28]} {[%emt 00:19:50]}
21. Kh1 {[%clk 00:44:49]} {[%emt 00:27:47]} Nbxa4 {[%clk 00:49:45]} {[%emt
00:10:13]} 22. Bxa4 {[%clk 00:44:36]} {[%emt 00:00:43]} Nxa4 {[%clk 00:48:57]}
{[%emt 00:01:19]} 23. f4 {[%clk 00:44:49]} {[%emt 00:00:16]} exf4 {[%clk
00:39:33]} {[%emt 00:09:54]} 24. Bxf4 {[%clk 00:36:47]} {[%emt 00:08:33]} Nc5
{[%clk 00:37:30]} {[%emt 00:02:32]} 25. Rae1 {[%clk 00:29:45]} {[%emt
00:07:32]} Nd3 {[%clk 00:36:35]} {[%emt 00:01:26]} 26. Bg5 {[%clk 00:29:18]}
{[%emt 00:00:57]} Be7 {[%clk 00:36:06]} {[%emt 00:00:59]} 27. Bxe7 {[%clk
00:29:39]} {[%emt 00:00:09]} Qxe7 {[%clk 00:36:23]} {[%emt 00:00:12]} 28. Re3
{[%clk 00:29:26]} {[%emt 00:00:43]} f6 {[%clk 00:22:52]} {[%emt 00:14:01]} 29.
Nxh5 {[%clk 00:25:10]} {[%emt 00:04:47]} gxh5 {[%clk 00:21:47]} {[%emt
00:01:35]} 30. Rg3+ {[%clk 00:25:33]} {[%emt 00:00:06]} Kh7 {[%clk 00:11:53]}
{[%emt 00:10:25]} 31. Rf5 {[%clk 00:25:37]} {[%emt 00:00:26]} Qe5 {[%clk
00:10:55]} {[%emt 00:01:28]} 32. Rxe5 {[%clk 00:25:16]} {[%emt 00:00:50]} Rxe5
{[%clk 00:11:23]} {[%emt 00:00:02]} 33. Nf3 {[%clk 00:24:07]} {[%emt 00:01:40]}
Rxe4 {[%clk 00:11:08]} {[%emt 00:00:44]} 34. Ng5 {[%clk 00:24:19]} {[%emt
00:00:17]} 1-0

[Event "NJSK 2018 Jeugd B"]
[Site "Assen, Netherlands"]
[Date "2018.04.29"]
[Round "1.3"]
[White "Gevorkjan, Lewon"]
[Black "Hilwerda, Jonas"]
[Result "0-1"]
[TimeControl "40/90m+30m+30sec/move"]
[WhiteElo "1821"]
[BlackElo "2108"]

1. Nf3 {[%clk 01:30:48]} {[%emt 00:00:14]} Nf6 {[%clk 01:30:50]} {[%emt
00:00:09]} 2. e3 {[%clk 01:31:07]} {[%emt 00:00:11]} b6 {[%clk 01:30:57]}
{[%emt 00:00:22]} 3. b3 {[%clk 01:28:37]} {[%emt 00:03:00]} Bb7 {[%clk
01:31:15]} {[%emt 00:00:12]} 4. Bb2 {[%clk 01:28:58]} {[%emt 00:00:09]} g6
{[%clk 01:30:39]} {[%emt 00:01:05]} 5. Be2 {[%clk 01:28:49]} {[%emt 00:00:40]}
Bg7 {[%clk 01:30:46]} {[%emt 00:00:23]} 6. O-O {[%clk 01:28:36]} {[%emt
00:00:43]} O-O {[%clk 01:30:56]} {[%emt 00:00:19]} 7. c4 {[%clk 01:25:16]}
{[%emt 00:03:51]} d6 {[%clk 01:30:29]} {[%emt 00:00:56]} 8. Nc3 {[%clk
01:24:52]} {[%emt 00:00:55]} e5 {[%clk 01:29:26]} {[%emt 00:01:32]} 9. d3
{[%clk 01:24:22]} {[%emt 00:01:01]} Nbd7 {[%clk 01:26:30]} {[%emt 00:03:26]} 10.
Nd2 {[%clk 01:22:23]} {[%emt 00:02:29]} Ne8 {[%clk 01:24:06]} {[%emt 00:02:53]}
11. Bf3 {[%clk 01:21:51]} {[%emt 00:01:03]} Bxf3 {[%clk 01:16:50]} {[%emt
00:07:46]} 12. Qxf3 {[%clk 01:20:55]} {[%emt 00:01:26]} Nc5 {[%clk 01:13:31]}
{[%emt 00:03:49]} 13. Qe2 {[%clk 01:20:00]} {[%emt 00:01:25]} f5 {[%clk
01:12:13]} {[%emt 00:01:48]} 14. b4 {[%clk 01:16:27]} {[%emt 00:04:04]} Ne6
{[%clk 01:11:38]} {[%emt 00:01:03]} 15. h3 {[%clk 01:08:06]} {[%emt 00:08:51]}
Nf6 {[%clk 00:53:22]} {[%emt 00:18:47]} 16. Rac1 {[%clk 00:59:57]} {[%emt
00:08:39]} Nh5 {[%clk 00:45:19]} {[%emt 00:08:33]} 17. a3 {[%clk 00:42:12]}
{[%emt 00:18:15]} Qg5 {[%clk 00:38:09]} {[%emt 00:07:39]} 18. Nf3 {[%clk
00:36:03]} {[%emt 00:06:39]} Qh6 {[%clk 00:35:01]} {[%emt 00:03:37]} 19. Rc2
{[%clk 00:35:16]} {[%emt 00:01:18]} g5 {[%clk 00:29:34]} {[%emt 00:05:57]} 20.
Nh2 {[%clk 00:33:09]} {[%emt 00:02:37]} Nf6 {[%clk 00:22:18]} {[%emt 00:07:46]}
21. Nd5 {[%clk 00:32:38]} {[%emt 00:01:02]} Rf7 {[%clk 00:20:43]} {[%emt
00:02:04]} 22. Nxf6+ {[%clk 00:30:04]} {[%emt 00:03:03]} Rxf6 {[%clk 00:18:43]}
{[%emt 00:02:31]} 23. Qf3 {[%clk 00:29:49]} {[%emt 00:00:45]} Raf8 {[%clk
00:18:20]} {[%emt 00:00:54]} 24. Qb7 {[%clk 00:28:42]} {[%emt 00:01:37]} g4
{[%clk 00:14:21]} {[%emt 00:04:28]} 25. hxg4 {[%clk 00:25:09]} {[%emt
00:04:04]} Rg6 {[%clk 00:14:02]} {[%emt 00:00:48]} 26. Qf3 {[%clk 00:23:45]}
{[%emt 00:01:54]} fxg4 {[%clk 00:12:56]} {[%emt 00:01:36]} 27. Qg3 {[%clk
00:23:28]} {[%emt 00:00:47]} Qg5 {[%clk 00:11:39]} {[%emt 00:01:47]} 28. Bc1
{[%clk 00:20:52]} {[%emt 00:03:07]} h5 {[%clk 00:10:17]} {[%emt 00:01:51]} 29.
f4 {[%clk 00:19:56]} {[%emt 00:01:26]} exf4 {[%clk 00:07:56]} {[%emt 00:02:51]}
30. exf4 {[%clk 00:20:20]} {[%emt 00:00:07]} Qf5 {[%clk 00:07:58]} {[%emt
00:00:27]} 31. Bb2 {[%clk 00:15:19]} {[%emt 00:05:31]} Bh6 {[%clk 00:07:03]}
{[%emt 00:01:25]} 32. Bc1 {[%clk 00:15:03]} {[%emt 00:00:46]} Nd4 {[%clk
00:05:23]} {[%emt 00:02:10]} 33. Ra2 {[%clk 00:12:44]} {[%emt 00:02:50]} Re6
{[%clk 00:03:40]} {[%emt 00:02:12]} 34. Qf2 {[%clk 00:12:02]} {[%emt 00:01:12]}
Qxd3 {[%clk 00:03:16]} {[%emt 00:00:55]} 35. Rd2 {[%clk 00:11:44]} {[%emt
00:00:48]} Ne2+ {[%clk 00:03:28]} {[%emt 00:00:17]} 36. Kh1 {[%clk 00:11:43]}
{[%emt 00:00:31]} Ng3 {[%clk 00:03:54]} {[%emt 00:00:05]} 37. Kg1 {[%clk
00:12:08]} {[%emt 00:00:05]} Ne2+ {[%clk 00:04:06]} {[%emt 00:00:18]} 38. Kh1
{[%clk 00:12:37]} {[%emt 00:00:01]} Qxc4 {[%clk 00:03:43]} {[%emt 00:00:53]} 39.
Rxe2 {[%clk 00:08:45]} {[%emt 00:04:21]} Rxe2 {[%clk 00:03:12]} {[%emt
00:01:00]} 40. Qg3 {[%clk 00:08:28]} {[%emt 00:00:48]} Re4 {[%clk 00:02:32]}
{[%emt 00:01:10]} 41. Qh4 {[%clk 00:07:46]} {[%emt 00:01:12]} Qf7 {[%clk
00:01:37]} {[%emt 00:01:24]} 42. Nxg4 {[%clk 00:07:00]} {[%emt 00:01:17]} hxg4
{[%clk 00:00:59]} {[%emt 00:01:08]} 43. Qxh6 {[%clk 00:07:27]} {[%emt
00:00:03]} Qh7 {[%clk 00:01:09]} {[%emt 00:00:20]} 44. Qxh7+ {[%clk 00:07:50]}
{[%emt 00:00:06]} Kxh7 {[%clk 00:01:38]} {[%emt 00:00:02]} 45. f5 {[%clk
00:07:50]} {[%emt 00:00:30]} Re5 {[%clk 00:01:18]} {[%emt 00:00:50]} 46. f6
{[%clk 00:08:08]} {[%emt 00:00:13]} Kg6 {[%clk 00:00:58]} {[%emt 00:00:49]} 47.
Bb2 {[%clk 00:07:43]} {[%emt 00:00:56]} Rxf6 {[%clk 00:01:11]} {[%emt
00:00:16]} 48. Rxf6+ {[%clk 00:07:44]} {[%emt 00:00:29]} Kxf6 {[%clk 00:01:40]}
{[%emt 00:00:02]} 49. Kh2 {[%clk 00:08:11]} {[%emt 00:00:02]} c5 {[%clk
00:01:11]} {[%emt 00:00:59]} 50. Kg3 {[%clk 00:08:00]} {[%emt 00:00:41]} Kf5
{[%clk 00:01:27]} {[%emt 00:00:14]} 51. Bxe5 {[%clk 00:07:11]} {[%emt
00:01:19]} dxe5 {[%clk 00:01:54]} {[%emt 00:00:04]} 0-1

[Event "NJSK 2018 Jeugd B"]
[Site "Assen, Netherlands"]
[Date "2018.04.29"]
[Round "1.4"]
[White "Wedda, Dries"]
[Black "Emans, Job"]
[Result "1-0"]
[TimeControl "40/90m+30m+30sec/move"]
[WhiteElo "2096"]
[BlackElo "1803"]

1. d4 {[%clk 01:30:57]} {[%emt 00:00:04]} Nf6 {[%clk 01:30:51]} {[%emt
00:00:10]} 2. c4 {[%clk 01:31:23]} {[%emt 00:00:05]} e6 {[%clk 01:31:16]}
{[%emt 00:00:04]} 3. g3 {[%clk 01:31:50]} {[%emt 00:00:01]} d5 {[%clk
01:30:21]} {[%emt 00:01:24]} 4. Nf3 {[%clk 01:32:13]} {[%emt 00:00:07]} Be7
{[%clk 01:22:28]} {[%emt 00:08:24]} 5. Bg2 {[%clk 01:31:06]} {[%emt 00:01:37]}
O-O {[%clk 01:22:42]} {[%emt 00:00:15]} 6. O-O {[%clk 01:31:33]} {[%emt
00:00:04]} b6 {[%clk 01:21:23]} {[%emt 00:01:49]} 7. cxd5 {[%clk 01:29:35]}
{[%emt 00:02:26]} exd5 {[%clk 01:21:25]} {[%emt 00:00:29]} 8. Nc3 {[%clk
01:29:51]} {[%emt 00:00:14]} Bb7 {[%clk 01:14:52]} {[%emt 00:07:03]} 9. Ne5
{[%clk 01:28:32]} {[%emt 00:01:49]} Nbd7 {[%clk 01:14:04]} {[%emt 00:01:18]} 10.
Qa4 {[%clk 01:28:39]} {[%emt 00:00:24]} Nxe5 {[%clk 00:54:21]} {[%emt
00:20:12]} 11. dxe5 {[%clk 01:27:52]} {[%emt 00:01:17]} Ne8 {[%clk 00:54:40]}
{[%emt 00:00:12]} 12. Nxd5 {[%clk 01:18:11]} {[%emt 00:10:11]} Bxd5 {[%clk
00:49:48]} {[%emt 00:05:21]} 13. Rd1 {[%clk 01:16:48]} {[%emt 00:01:53]} b5
{[%clk 00:41:36]} {[%emt 00:08:42]} 14. Qc2 {[%clk 01:14:08]} {[%emt 00:03:09]}
c6 {[%clk 00:40:46]} {[%emt 00:01:22]} 15. e4 {[%clk 01:14:30]} {[%emt
00:00:07]} Rc8 {[%clk 00:38:11]} {[%emt 00:03:05]} 16. Bh3 {[%clk 01:03:26]}
{[%emt 00:11:34]} f5 {[%clk 00:29:26]} {[%emt 00:09:15]} 17. exf6 {[%clk
00:56:23]} {[%emt 00:07:33]} Nxf6 {[%clk 00:29:51]} {[%emt 00:00:05]} 18. exd5
{[%clk 00:53:55]} {[%emt 00:02:58]} Nxd5 {[%clk 00:29:05]} {[%emt 00:01:17]} 19.
Bxc8 {[%clk 00:45:57]} {[%emt 00:08:28]} Qxc8 {[%clk 00:28:18]} {[%emt
00:01:16]} 20. Be3 {[%clk 00:40:35]} {[%emt 00:05:51]} Nxe3 {[%clk 00:15:19]}
{[%emt 00:13:30]} 21. fxe3 {[%clk 00:41:03]} {[%emt 00:00:03]} Qe6 {[%clk
00:15:37]} {[%emt 00:00:12]} 22. Qb3 {[%clk 00:40:45]} {[%emt 00:00:47]} Qxb3
{[%clk 00:15:56]} {[%emt 00:00:11]} 23. axb3 {[%clk 00:41:14]} Bc5 {[%clk
00:16:20]} {[%emt 00:00:06]} 24. Rd3 {[%clk 00:41:03]} {[%emt 00:00:41]} Rf6
{[%clk 00:09:34]} {[%emt 00:07:17]} 25. Rf1 {[%clk 00:41:04]} {[%emt 00:00:28]}
Kf7 {[%clk 00:07:26]} {[%emt 00:02:39]} 26. Rxf6+ {[%clk 00:41:18]} {[%emt
00:00:15]} gxf6 {[%clk 00:07:48]} {[%emt 00:00:08]} 27. Kf2 {[%clk 00:35:51]}
{[%emt 00:05:57]} Ke7 {[%clk 00:06:17]} {[%emt 00:02:00]} 28. Kf3 {[%clk
00:35:20]} {[%emt 00:01:02]} Bd6 {[%clk 00:02:50]} {[%emt 00:03:58]} 29. h3
{[%clk 00:33:42]} {[%emt 00:02:08]} Be5 {[%clk 00:02:21]} {[%emt 00:00:58]} 30.
Rd2 {[%clk 00:34:01]} {[%emt 00:00:12]} c5 {[%clk 00:01:41]} {[%emt 00:01:10]}
31. g4 {[%clk 00:34:14]} {[%emt 00:00:17]} a5 {[%clk 00:01:57]} {[%emt
00:00:14]} 32. Ke4 {[%clk 00:34:12]} {[%emt 00:00:31]} Ke6 {[%clk 00:01:28]}
{[%emt 00:01:01]} 33. Rd5 {[%clk 00:26:49]} {[%emt 00:07:52]} Bxb2 {[%clk
00:00:58]} {[%emt 00:01:00]} 34. Rxc5 {[%clk 00:27:03]} {[%emt 00:00:15]} a4
{[%clk 00:01:07]} {[%emt 00:00:22]} 35. Rxb5 {[%clk 00:27:20]} {[%emt
00:00:13]} a3 {[%clk 00:00:50]} {[%emt 00:00:48]} 36. Ra5 {[%clk 00:27:49]}
{[%emt 00:00:01]} Kd6 {[%clk 00:01:11]} {[%emt 00:00:08]} 37. Kf5 {[%clk
00:27:58]} {[%emt 00:00:20]} Kc6 {[%clk 00:01:27]} {[%emt 00:00:15]} 38. g5
{[%clk 00:27:34]} {[%emt 00:00:54]} fxg5 {[%clk 00:01:43]} {[%emt 00:00:14]} 39.
Kxg5 {[%clk 00:28:02]} {[%emt 00:00:01]} Bc1 {[%clk 00:00:49]} {[%emt
00:01:24]} 40. Kh6 {[%clk 00:28:24]} {[%emt 00:00:09]} Bxe3 {[%clk 00:00:36]}
{[%emt 00:00:44]} 41. Kxh7 {[%clk 00:28:44]} {[%emt 00:00:09]} Bc5 {[%clk
00:00:46]} {[%emt 00:00:19]} 42. h4 {[%clk 00:28:42]} {[%emt 00:00:32]} Kb6
{[%clk 00:01:10]} {[%emt 00:00:07]} 43. Ra4 {[%clk 00:29:08]} {[%emt 00:00:04]}
1-0